fUST/lending_fUST_20250325
["ID","MTS","AMOUNT","RATE_DAILY","PERIOD"]
[356629022,1742853038088,-936.217075,0.00013832,2]
[356629024,1742853038098,-936.217075,0.00013832,2]
[356629025,1742853038107,-936.21706938,0.00013832,2]
[356629026,1742853038117,-66431.21184361,0.00013832,2]
[356629027,1742853038127,-500.0,0.00013835,2]
[356629028,1742853038137,-150.18,0.00013835,2]
[356629029,1742853038146,-500.0,0.00013836,2]
[356629031,1742853038155,-420.0,0.00013841,2]
[356629032,1742853038164,-151.0,0.000139,2]
[356629033,1742853038173,-151.0,0.000139,2]
[356629034,1742853038183,-151.0,0.000139,2]
[356629035,1742853038193,-151.0,0.000139,2]
[356629036,1742853038202,-151.0,0.000139,2]
[356629038,1742853038211,-153.613,0.00013929,2]
[356629039,1742853038220,-235.899,0.00013929,2]
[356629041,1742853038229,-249.539,0.00013929,2]
[356629042,1742853038238,-254.87,0.00013929,2]
[356629043,1742853038248,-187.0,0.00013929,2]
[356629044,1742853038257,-280.561,0.00013929,2]
[356629045,1742853038267,-500.0,0.00013972,2]
[356629046,1742853038276,-150.18,0.00013972,2]
[356629047,1742853038285,-500.0,0.00013972,2]
[356629048,1742853038295,-500.0,0.00013972,2]
[356629049,1742853038304,-500.0,0.00013972,2]
[356629050,1742853038313,-500.0,0.00013972,2]
[356629051,1742853038322,-500.0,0.00013972,2]
[356629052,1742853038331,-500.0,0.00013972,2]
[356629053,1742853038341,-500.0,0.00013972,2]
[356629054,1742853038351,-1387.05,0.00013972,2]
[356629055,1742853038360,-500.0,0.00013972,2]
[356629056,1742853038370,-500.0,0.00013972,2]
[356629057,1742853038379,-500.0,0.00013972,2]
[356629058,1742853038390,-500.0,0.00013972,2]
[356629059,1742853038399,-500.0,0.00013972,2]
[356629060,1742853038408,-500.0,0.00013972,2]
[356629061,1742853038418,-247.69076389,0.00013972,2]
[356629062,1742853038427,-500.0,0.00013972,2]
[356629063,1742853038436,-500.0,0.00013972,2]
[356629064,1742853038446,-500.0,0.00013972,2]
[356629065,1742853038455,-500.0,0.00013972,2]
[356629067,1742853038464,-500.0,0.00013972,2]
[356629069,1742853038474,-500.0,0.00013972,2]
[356629070,1742853038484,-500.0,0.00013972,2]
[356629071,1742853038494,-500.0,0.00013972,2]
[356629072,1742853038502,-500.0,0.00013972,2]
[356629073,1742853038511,-500.0,0.00013972,2]
[356629074,1742853038520,-500.0,0.00013972,2]
[356629075,1742853038530,-500.0,0.00013972,2]
[356629076,1742853038539,-500.0,0.00013972,2]
[356629077,1742853038549,-500.0,0.00013972,2]
[356629078,1742853038558,-500.0,0.00013972,2]
[356629079,1742853038567,-519.57385576,0.00013972,2]
[356629080,1742853038577,-500.0,0.00013972,2]
[356629081,1742853038586,-500.0,0.00013972,2]
[356629082,1742853038595,-500.0,0.00013972,2]
[356629083,1742853038605,-500.0,0.00013972,2]
[356629084,1742853038614,-500.0,0.00013972,2]
[356629085,1742853038623,-516.81472441,0.00013972,2]
[356629086,1742853038633,-518.31839917,0.00013972,2]
[356629087,1742853038642,-184.70429974,0.00013972,2]
[356629088,1742853038651,-500.0,0.00013972,2]
[356629089,1742853038661,-500.0,0.00013972,2]
[356629090,1742853038671,-500.0,0.00013972,2]
[356629091,1742853038680,-500.0,0.00013972,2]
[356629092,1742853038691,-500.0,0.00013972,2]
[356629093,1742853038700,-500.0,0.00013972,2]
[356629094,1742853038709,-500.0,0.00013972,2]
[356629095,1742853038719,-521.41964793,0.00013972,2]
[356629096,1742853038728,-527.46874779,0.00013972,2]
[356629097,1742853038738,-500.0,0.00013972,2]
[356629098,1742853038747,-508.13,0.00013972,2]
[356629099,1742853038757,-500.0,0.00013972,2]
[356629100,1742853038767,-500.0,0.00013972,2]
[356629101,1742853038776,-500.0,0.00013972,2]
[356629102,1742853038786,-500.0,0.00013972,2]
[356629103,1742853038795,-500.0,0.00013972,2]
[356629104,1742853038805,-500.0,0.00013972,2]
[356629105,1742853038815,-500.0,0.00013972,2]
[356629106,1742853038825,-500.0,0.00013972,2]
[356629107,1742853038835,-500.0,0.00013972,2]
[356629108,1742853038844,-500.0,0.00013972,2]
[356629109,1742853038854,-500.0,0.00013972,2]
[356629110,1742853038863,-500.0,0.00013972,2]
[356629111,1742853038872,-500.0,0.00013972,2]
[356629112,1742853038882,-500.0,0.00013972,2]
[356629113,1742853038891,-500.0,0.00013972,2]
[356629114,1742853038900,-500.0,0.00013972,2]
[356629115,1742853038910,-500.0,0.00013972,2]
[356629116,1742853038920,-500.0,0.00013972,2]
[356629117,1742853038929,-500.0,0.00013972,2]
[356629118,1742853038939,-500.0,0.00013972,2]
[356629119,1742853038948,-500.0,0.00013972,2]
[356629120,1742853038958,-500.0,0.00013972,2]
[356629121,1742853038967,-500.0,0.00013972,2]
[356629122,1742853038977,-500.0,0.00013972,2]
[356629123,1742853038989,-500.0,0.00013972,2]
[356629124,1742853038999,-500.0,0.00013972,2]
[356629125,1742853039008,-500.0,0.00013972,2]
[356629126,1742853039019,-500.0,0.00013972,2]
[356629127,1742853039028,-229.03661591,0.00013972,2]
[356629128,1742853039037,-500.0,0.00013972,2]
[356629129,1742853039046,-500.0,0.00013972,2]
[356629130,1742853039057,-605.88269205,0.00013972,2]
[356629131,1742853039067,-500.0,0.00013972,2]
[356629132,1742853039076,-500.0,0.00013972,2]
[356629133,1742853039085,-500.0,0.00013972,2]
[356629134,1742853039095,-999.13,0.00013972,2]
[356629135,1742853039104,-500.0,0.00013972,2]
[356629136,1742853039113,-500.0,0.00013972,2]
[356629137,1742853039122,-500.0,0.00013972,2]
[356629138,1742853039132,-500.0,0.00013972,2]
[356629139,1742853039141,-511.9222913,0.00013972,2]
[356629140,1742853039150,-504.36,0.00013972,2]
[356629141,1742853039159,-508.09697055,0.00013972,2]
[356629142,1742853039169,-509.85431272,0.00013972,2]
[356629143,1742853039178,-500.0,0.00013972,2]
[356629144,1742853039187,-500.0,0.00013972,2]
[356629145,1742853039196,-955.98,0.00013972,2]
[356629146,1742853039206,-500.0,0.00013972,2]
[356629147,1742853039215,-1052.5,0.00013972,2]
[356629148,1742853039224,-500.0,0.00013972,2]
[356629149,1742853039233,-500.0,0.00013972,2]
[356629150,1742853039242,-500.0,0.00013972,2]
[356629151,1742853039251,-1299.9,0.00013972,2]
[356629152,1742853039260,-500.0,0.00013972,2]
[356629153,1742853039270,-500.0,0.00013972,2]
[356629154,1742853039279,-500.0,0.00013972,2]
[356629155,1742853039288,-500.0,0.00013972,2]
[356629156,1742853039396,-1391.46,0.00013972,2]
[356629157,1742853039406,-500.0,0.00013972,2]
[356629158,1742853039415,-500.0,0.00013972,2]
[356629159,1742853039426,-500.0,0.00013972,2]
[356629160,1742853039435,-500.0,0.00013972,2]
[356629161,1742853039444,-500.0,0.00013972,2]
[356629162,1742853039453,-544.12,0.00013972,2]
[356629163,1742853039463,-500.0,0.00013972,2]
[356629164,1742853039472,-500.0,0.00013972,2]
[356629165,1742853039482,-500.0,0.00013972,2]
[356629166,1742853039491,-540.74,0.00013972,2]
[356629167,1742853039501,-521.02,0.00013972,2]
[356629168,1742853039510,-500.0,0.00013972,2]
[356629169,1742853039519,-500.0,0.00013972,2]
[356629170,1742853039528,-1129.66,0.00013972,2]
[356629171,1742853039538,-500.0,0.00013972,2]
[356629172,1742853039547,-500.0,0.00013972,2]
[356629173,1742853039556,-500.0,0.00013972,2]
[356629174,1742853039566,-539.89,0.00013972,2]
[356629175,1742853039575,-500.0,0.00013972,2]
[356629176,1742853039585,-500.0,0.00013972,2]
[356629177,1742853039594,-500.0,0.00013972,2]
[356629178,1742853039603,-500.0,0.00013972,2]
[356629179,1742853039613,-507.98,0.00013972,2]
[356629180,1742853039622,-500.0,0.00013972,2]
[356629181,1742853039631,-989.28,0.00013972,2]
[356629182,1742853039640,-500.0,0.00013972,2]
[356629183,1742853039649,-500.0,0.00013972,2]
[356629184,1742853039658,-500.0,0.00013972,2]
[356629185,1742853039668,-500.0,0.00013972,2]
[356629186,1742853039677,-500.0,0.00013972,2]
[356629187,1742853039686,-500.0,0.00013972,2]
[356629188,1742853039696,-500.0,0.00013972,2]
[356629189,1742853039705,-509.77648177,0.00013972,2]
[356629190,1742853039715,-500.0,0.00013972,2]
[356629191,1742853039724,-500.0,0.00013972,2]
[356629192,1742853039733,-510.74450205,0.00013972,2]
[356629194,1742853039742,-500.0,0.00013972,2]
[356629195,1742853039751,-500.0,0.00013972,2]
[356629196,1742853039760,-500.0,0.00013972,2]
[356629197,1742853039770,-500.0,0.00013972,2]
[356629198,1742853039779,-500.0,0.00013972,2]
[356629199,1742853039788,-500.0,0.00013972,2]
[356629200,1742853039797,-500.0,0.00013972,2]
[356629201,1742853039806,-500.0,0.00013972,2]
[356629202,1742853039816,-704.59,0.00013972,2]
[356629203,1742853039825,-500.0,0.00013972,2]
[356629204,1742853039834,-506.77645842,0.00013972,2]
[356629205,1742853039844,-500.0,0.00013972,2]
[356629206,1742853039853,-1037.01,0.00013972,2]
[356629207,1742853039863,-500.0,0.00013972,2]
[356629208,1742853039872,-500.0,0.00013972,2]
[356629209,1742853039881,-551.39,0.00013972,2]
[356629210,1742853039891,-500.0,0.00013972,2]
[356629211,1742853039900,-500.0,0.00013972,2]
[356629212,1742853039910,-526.63,0.00013972,2]
[356629213,1742853039919,-500.0,0.00013972,2]
[356629214,1742853039928,-500.0,0.00013972,2]
[356629215,1742853039938,-500.0,0.00013972,2]
[356629216,1742853039947,-500.0,0.00013972,2]
[356629217,1742853039956,-564.14,0.00013972,2]
[356629218,1742853039965,-500.0,0.00013972,2]
[356629219,1742853039974,-3259.08,0.00013972,2]
[356629221,1742853039987,-500.0,0.00013972,2]
[356629223,1742853039997,-500.0,0.00013972,2]
[356629224,1742853040006,-500.0,0.00013972,2]
[356629225,1742853040015,-500.0,0.00013972,2]
[356629226,1742853040024,-500.0,0.00013972,2]
[356629227,1742853040034,-500.0,0.00013972,2]
[356629228,1742853040044,-500.0,0.00013972,2]
[356629229,1742853040054,-500.0,0.00013972,2]
[356629230,1742853040065,-519.52152571,0.00013972,2]
[356629231,1742853040075,-598.50059957,0.00013972,2]
[356629232,1742853040084,-500.0,0.00013972,2]
[356629233,1742853040094,-1266.65,0.00013972,2]
[356629234,1742853040103,-500.0,0.00013972,2]
[356629235,1742853040112,-500.0,0.00013972,2]
[356629236,1742853040121,-500.0,0.00013972,2]
[356629237,1742853040130,-718.32,0.00013972,2]
[356629238,1742853040140,-500.0,0.00013972,2]
[356629239,1742853040150,-500.0,0.00013972,2]
[356629240,1742853040159,-500.0,0.00013972,2]
[356629241,1742853040168,-500.0,0.00013972,2]
[356629242,1742853040179,-500.0,0.00013972,2]
[356629243,1742853040188,-500.0,0.00013972,2]
[356629244,1742853040197,-1180.05,0.00013972,2]
[356629245,1742853040206,-500.0,0.00013972,2]
[356629246,1742853040215,-500.0,0.00013972,2]
[356629247,1742853040225,-500.0,0.00013972,2]
[356629248,1742853040234,-500.0,0.00013972,2]
[356629249,1742853040243,-500.0,0.00013972,2]
[356629250,1742853040253,-500.0,0.00013972,2]
[356629251,1742853040262,-562.94245319,0.00013972,2]
[356629252,1742853040271,-500.0,0.00013972,2]
[356629253,1742853040280,-500.0,0.00013972,2]
[356629254,1742853040289,-500.0,0.00013972,2]
[356629255,1742853040299,-500.0,0.00013972,2]
[356629256,1742853040308,-500.0,0.00013972,2]
[356629257,1742853040317,-500.0,0.00013972,2]
[356629258,1742853040326,-2060.93,0.00013972,2]
[356629259,1742853040336,-500.0,0.00013972,2]
[356629260,1742853040344,-746.71,0.00013972,2]
[356629261,1742853040354,-975.68,0.00013972,2]
[356629262,1742853040364,-500.0,0.00013972,2]
[356629263,1742853040373,-500.0,0.00013972,2]
[356629264,1742853040382,-500.0,0.00013972,2]
[356629265,1742853040392,-511.2580661,0.00013972,2]
[356629266,1742853040404,-500.0,0.00013972,2]
[356629267,1742853040413,-500.0,0.00013972,2]
[356629268,1742853040423,-500.0,0.00013972,2]
[356629270,1742853040432,-500.0,0.00013972,2]
[356629272,1742853040441,-500.0,0.00013972,2]
[356629273,1742853040450,-500.0,0.00013972,2]
[356629274,1742853040460,-654.08,0.00013972,2]
[356629275,1742853040469,-500.0,0.00013972,2]
[356629276,1742853040478,-925.23,0.00013972,2]
[356629278,1742853040488,-3695.62,0.00013972,2]
[356629279,1742853040498,-500.0,0.00013972,2]
[356629280,1742853040507,-500.0,0.00013972,2]
[356629281,1742853040516,-1768.23,0.00013972,2]
[356629282,1742853040525,-500.0,0.00013972,2]
[356629283,1742853040535,-500.0,0.00013972,2]
[356629285,1742853040544,-500.0,0.00013972,2]
[356629287,1742853040554,-500.0,0.00013972,2]
[356629288,1742853040563,-500.0,0.00013972,2]
[356629289,1742853040573,-157.78783266,0.00013972,2]
[356629290,1742853040582,-500.0,0.00013972,2]
[356629291,1742853040591,-925.34,0.00013972,2]
[356629293,1742853040600,-500.0,0.00013972,2]
[356629294,1742853040610,-2292.64,0.00013972,2]
[356629295,1742853040619,-655.5,0.00013972,2]
[356629296,1742853040629,-500.0,0.00013972,2]
[356629297,1742853040638,-500.0,0.00013972,2]
[356629298,1742853040647,-2011.89,0.00013972,2]
[356629299,1742853040657,-500.0,0.00013972,2]
[356629301,1742853040666,-500.0,0.00013972,2]
[356629302,1742853040676,-500.0,0.00013972,2]
[356629303,1742853040686,-581.67,0.00013972,2]
[356629304,1742853040696,-1588.6,0.00013972,2]
[356629305,1742853040705,-581.15,0.00013972,2]
[356629306,1742853040715,-500.0,0.00013972,2]
[356629307,1742853040725,-1365.37,0.00013972,2]
[356629308,1742853040735,-500.0,0.00013972,2]
[356629309,1742853040744,-1135.07,0.00013972,2]
[356629310,1742853040753,-500.0,0.00013972,2]
[356629311,1742853040763,-500.0,0.00013972,2]
[356629312,1742853040773,-752.27,0.00013972,2]
[356629313,1742853040783,-2528.11,0.00013972,2]
[356629314,1742853040792,-4781.47,0.00013972,2]
[356629315,1742853040801,-500.0,0.00013972,2]
[356629316,1742853040812,-500.0,0.00013972,2]
[356629317,1742853040821,-1636.63,0.00013972,2]
[356629318,1742853040831,-770.91,0.00013972,2]
[356629319,1742853040840,-614.19959796,0.00013972,2]
[356629320,1742853040849,-500.0,0.00013972,2]
[356629321,1742853040858,-1712.49,0.00013972,2]
[356629322,1742853040868,-1265.12,0.00013972,2]
[356629323,1742853040877,-500.0,0.00013972,2]
[356629324,1742853040886,-500.0,0.00013972,2]
[356629325,1742853040896,-505.32810327,0.00013972,2]
[356629326,1742853040906,-502.03,0.00013972,2]
[356629327,1742853040916,-500.0,0.00013972,2]
[356629328,1742853040925,-2591.57,0.00013972,2]
[356629329,1742853040934,-578.55,0.00013972,2]
[356629330,1742853040943,-1928.15,0.00013972,2]
[356629331,1742853040952,-500.0,0.00013972,2]
[356629332,1742853040962,-318.21627342,0.00013972,2]
[356629333,1742853040971,-500.0,0.00013972,2]
[356629334,1742853040984,-536.29,0.00013972,2]
[356629335,1742853040994,-635.94,0.00013972,2]
[356629336,1742853041003,-378.45025955,0.00013972,2]
[356629337,1742853041012,-500.0,0.00013972,2]
[356629338,1742853041022,-500.0,0.00013972,2]
[356629339,1742853041031,-996.35,0.00013972,2]
[356629340,1742853041040,-500.0,0.00013972,2]
[356629341,1742853041049,-3243.41,0.00013972,2]
[356629342,1742853041059,-500.0,0.00013972,2]
[356629343,1742853041068,-500.0,0.00013972,2]
[356629344,1742853041077,-500.0,0.00013972,2]
[356629345,1742853041086,-1135.24,0.00013972,2]
[356629346,1742853041094,-500.0,0.00013972,2]
[356629347,1742853041104,-728.36,0.00013972,2]
[356629348,1742853041113,-500.0,0.00013972,2]
[356629349,1742853041122,-500.0,0.00013972,2]
[356629350,1742853041131,-409.72634083,0.00013972,2]
[356629351,1742853041141,-663.91,0.00013972,2]
[356629352,1742853041151,-507.50818181,0.00013972,2]
[356629353,1742853041160,-502.14478688,0.00013972,2]
[356629354,1742853041179,-5797.81,0.00013972,2]
[356629355,1742853041190,-6863.21,0.00013972,2]
[356629356,1742853041199,-815.38,0.00013972,2]
[356629357,1742853041208,-628.68,0.00013972,2]
[356629358,1742853041217,-508.86764255,0.00013972,2]
[356629359,1742853041226,-1225.9,0.00013972,2]
[356629360,1742853041236,-505.34826254,0.00013972,2]
[356629361,1742853041245,-500.0,0.00013972,2]
[356629362,1742853041255,-471.7414179,0.00013972,2]
[356629363,1742853041265,-500.0,0.00013972,2]
[356629364,1742853041274,-500.0,0.00013972,2]
[356629365,1742853041283,-500.0,0.00013972,2]
[356629366,1742853041292,-3264.87,0.00013972,2]
[356629367,1742853041302,-500.0,0.00013972,2]
[356629368,1742853041312,-500.0,0.00013972,2]
[356629369,1742853041322,-500.0,0.00013972,2]
[356629370,1742853041478,-500.0,0.00013972,2]
[356629371,1742853041488,-500.0,0.00013972,2]
[356629372,1742853041498,-500.0,0.00013972,2]
[356629373,1742853041511,-635.02,0.00013972,2]
[356629374,1742853041520,-124286.81,0.00013972,2]
[356629375,1742853041530,-500.0,0.00013972,2]
[356629376,1742853041539,-6384.52,0.00013972,2]
[356629377,1742853041549,-500.0,0.00013972,2]
[356629378,1742853041558,-1037.83,0.00013972,2]
[356629379,1742853041567,-2798.96,0.00013972,2]
[356629380,1742853041577,-500.0,0.00013972,2]
[356629381,1742853041586,-662.29,0.00013972,2]
[356629382,1742853041595,-500.0,0.00013972,2]
[356629383,1742853041605,-500.0,0.00013972,2]
[356629384,1742853041614,-500.0,0.00013972,2]
[356629385,1742853041624,-957.79,0.00013972,2]
[356629386,1742853041633,-500.0,0.00013972,2]
[356629387,1742853041643,-3257.01,0.00013972,2]
[356629388,1742853041652,-1593.95,0.00013972,2]
[356629389,1742853041662,-1063.57,0.00013972,2]
[356629390,1742853041671,-2705.12,0.00013972,2]
[356629391,1742853041681,-500.0,0.00013972,2]
[356629392,1742853041691,-500.0,0.00013972,2]
[356629393,1742853041700,-500.0,0.00013972,2]
[356629394,1742853041710,-500.0,0.00013972,2]
[356629395,1742853041719,-546.67,0.00013972,2]
[356629396,1742853041729,-500.0,0.00013972,2]
[356629397,1742853041738,-1270.14,0.00013972,2]
[356629398,1742853041748,-500.0,0.00013972,2]
[356629399,1742853041757,-500.0,0.00013972,2]
[356629400,1742853041766,-500.0,0.00013972,2]
[356629401,1742853041776,-1087.1,0.00013972,2]
[356629402,1742853041785,-1640.61,0.00013972,2]
[356629403,1742853041794,-500.0,0.00013972,2]
[356629404,1742853041803,-500.0,0.00013972,2]
[356629405,1742853041813,-500.0,0.00013972,2]
[356629406,1742853041822,-521.04,0.00013972,2]
[356629407,1742853041832,-610.52,0.00013972,2]
[356629408,1742853041841,-1178.35,0.00013972,2]
[356629409,1742853041850,-500.0,0.00013972,2]
[356629410,1742853041859,-500.0,0.00013972,2]
[356629411,1742853041868,-500.0,0.00013972,2]
[356629412,1742853041877,-500.0,0.00013972,2]
[356629413,1742853041887,-4756.02,0.00013972,2]
[356629414,1742853041896,-500.0,0.00013972,2]
[356629415,1742853041905,-2157.56,0.00013972,2]
[356629416,1742853041914,-607.35,0.00013972,2]
[356629417,1742853041924,-382.09194946,0.00013972,2]
[356629418,1742853041933,-500.0,0.00013972,2]
[356629419,1742853041942,-500.0,0.00013972,2]
[356629420,1742853041952,-500.0,0.00013972,2]
[356629421,1742853041961,-5782.71,0.00013972,2]
[356629422,1742853041971,-545.25,0.00013972,2]
[356629423,1742853041982,-500.0,0.00013972,2]
[356629424,1742853041992,-500.0,0.00013972,2]
[356629425,1742853042001,-500.0,0.00013972,2]
[356629426,1742853042010,-500.0,0.00013972,2]
[356629427,1742853042020,-500.0,0.00013972,2]
[356629428,1742853042030,-500.0,0.00013972,2]
[356629429,1742853042039,-500.0,0.00013972,2]
[356629430,1742853042048,-500.0,0.00013972,2]
[356629431,1742853042058,-439.79884664,0.00013972,2]
[356629432,1742853042067,-500.0,0.00013973,2]
[356629433,1742853042076,-500.0,0.00013973,2]
[356629434,1742853042085,-300.0,0.00014,4]
[356629435,1742853042095,-541.0,0.00014028,2]
[356629436,1742853042104,-151.077,0.00014028,2]
[356629437,1742853042113,-2263.0,0.00014028,2]
[356629438,1742853042122,-1915.0,0.00014028,2]
[356629439,1742853042132,-406.267,0.00014028,2]
[356629440,1742853042141,-150.0,0.00014028,2]
[356629441,1742853042150,-13398.04073901,0.000141,2]
[356629442,1742853042160,-500.0,0.00014109,2]
[356629443,1742853042169,-150.18,0.00014109,2]
[356629444,1742853042178,-500.0,0.0001411,2]
[356629445,1742853042187,-293.91019529,0.00014184,2]
[356629446,1742853042200,-576.24,0.000142,2]
[356629447,1742853042209,-552.3174319,0.00014246,2]
[356629448,1742853042219,-214.53969945,0.00014246,2]
[356629449,1742853042228,-500.0,0.00014246,2]
[356629450,1742853042237,-500.0,0.00014246,2]
[356629451,1742853042247,-500.0,0.00014246,2]
[356629452,1742853042256,-500.0,0.00014246,2]
[356629453,1742853042265,-500.0,0.00014246,2]
[356629454,1742853042274,-500.0,0.00014246,2]
[356629455,1742853042283,-1387.05,0.00014246,2]
[356629456,1742853042293,-513.30837485,0.00014246,2]
[356629457,1742853042302,-500.0,0.00014246,2]
[356629458,1742853042312,-500.0,0.00014246,2]
[356629459,1742853042321,-500.0,0.00014246,2]
[356629460,1742853042331,-500.0,0.00014246,2]
[356629461,1742853042340,-500.0,0.00014246,2]
[356629462,1742853042350,-506.82858777,0.00014246,2]
[356629463,1742853042359,-500.0,0.00014246,2]
[356629464,1742853042369,-500.0,0.00014246,2]
[356629465,1742853042378,-500.0,0.00014246,2]
[356629466,1742853042387,-511.2785688,0.00014246,2]
[356629467,1742853042397,-500.0,0.00014246,2]
[356629468,1742853042406,-500.0,0.00014246,2]
[356629469,1742853042415,-511.4222487,0.00014246,2]
[356629470,1742853042424,-500.0,0.00014246,2]
[356629471,1742853042433,-500.0,0.00014246,2]
[356629472,1742853042442,-500.0,0.00014246,2]
[356629473,1742853042452,-500.0,0.00014246,2]
[356629474,1742853042461,-500.0,0.00014246,2]
[356629475,1742853042470,-500.0,0.00014246,2]
[356629476,1742853042480,-500.0,0.00014246,2]
[356629477,1742853042489,-500.0,0.00014246,2]
[356629478,1742853042498,-500.0,0.00014246,2]
[356629479,1742853042508,-500.0,0.00014246,2]
[356629480,1742853042517,-508.59590082,0.00014246,2]
[356629481,1742853042526,-500.0,0.00014246,2]
[356629482,1742853042536,-500.0,0.00014246,2]
[356629483,1742853042545,-500.0,0.00014246,2]
[356629484,1742853042554,-500.0,0.00014246,2]
[356629485,1742853042564,-500.0,0.00014246,2]
[356629486,1742853042573,-500.0,0.00014246,2]
[356629487,1742853042582,-508.13,0.00014246,2]
[356629488,1742853042591,-500.0,0.00014246,2]
[356629489,1742853042600,-500.0,0.00014246,2]
[356629490,1742853042610,-500.0,0.00014246,2]
[356629491,1742853042619,-500.0,0.00014246,2]
[356629492,1742853042629,-500.0,0.00014246,2]
[356629493,1742853042638,-500.0,0.00014246,2]
[356629494,1742853042648,-500.0,0.00014246,2]
[356629495,1742853042657,-500.0,0.00014246,2]
[356629496,1742853042668,-569.0009966,0.00014246,2]
[356629497,1742853042677,-500.0,0.00014246,2]
[356629498,1742853042687,-500.0,0.00014246,2]
[356629499,1742853042696,-500.0,0.00014246,2]
[356629500,1742853042706,-500.0,0.00014246,2]
[356629501,1742853042715,-500.0,0.00014246,2]
[356629502,1742853042724,-500.0,0.00014246,2]
[356629503,1742853042734,-500.0,0.00014246,2]
[356629504,1742853042743,-500.0,0.00014246,2]
[356629505,1742853042753,-500.0,0.00014246,2]
[356629506,1742853042763,-500.0,0.00014246,2]
[356629508,1742853042773,-500.0,0.00014246,2]
[356629510,1742853042783,-500.0,0.00014246,2]
[356629511,1742853042793,-500.0,0.00014246,2]
[356629512,1742853042802,-360.31405612,0.00014246,2]
[356629513,1742853042812,-500.0,0.00014246,2]
[356629514,1742853042822,-642.04757604,0.00014246,2]
[356629515,1742853042831,-500.0,0.00014246,2]
[356629516,1742853042841,-514.9984423,0.00014246,2]
[356629517,1742853042850,-500.0,0.00014246,2]
[356629518,1742853042859,-500.0,0.00014246,2]
[356629519,1742853042869,-500.0,0.00014246,2]
[356629520,1742853042879,-500.0,0.00014246,2]
[356629522,1742853042888,-500.0,0.00014246,2]
[356629523,1742853042897,-999.13,0.00014246,2]
[356629524,1742853042906,-500.0,0.00014246,2]
[356629525,1742853042915,-500.0,0.00014246,2]
[356629526,1742853042925,-504.36,0.00014246,2]
[356629527,1742853042935,-500.0,0.00014246,2]
[356629528,1742853042944,-368.71213629,0.00014246,2]
[356629529,1742853042953,-955.98,0.00014246,2]
[356629530,1742853042963,-500.0,0.00014246,2]
[356629531,1742853042972,-1052.5,0.00014246,2]
[356629532,1742853042983,-500.0,0.00014246,2]
[356629533,1742853042992,-500.0,0.00014246,2]
[356629534,1742853043003,-500.0,0.00014246,2]
[356629535,1742853043012,-1299.9,0.00014246,2]
[356629536,1742853043021,-500.0,0.00014246,2]
[356629537,1742853043031,-500.0,0.00014246,2]
[356629538,1742853043040,-500.0,0.00014246,2]
[356629539,1742853043049,-500.0,0.00014246,2]
[356629541,1742853043058,-1391.46,0.00014246,2]